bitfinex/quotes_BTCUSD_20250303
["timestamp","ask_amount","ask_price","bid_price","bid_amount"]
[1741026592414,0.28185421,88151.0,88150.0,0.0005]
[1741026592632,0.0003408,88154.0,88150.0,0.0005]
[1741026592836,0.05497121,88151.0,88137.0,0.00011915]
[1741026592994,0.05497121,88151.0,88040.0,0.1]
[1741026592995,0.05497121,88075.0,88064.0,0.02875114]
[1741026593197,0.05497121,88084.0,88083.0,0.28620282]
[1741026593395,0.05497121,88112.0,88111.0,0.226986]
[1741026593642,0.05497121,88112.0,88064.0,0.00039791]
[1741026593643,0.05497121,88111.0,88110.0,0.03039368]
[1741026593818,0.003,88151.0,88122.0,0.03039368]
[1741026593819,0.05497121,88125.0,88122.0,0.03039368]
[1741026594020,0.05497121,88112.0,88099.0,0.00239368]
[1741026594218,0.05497121,88119.0,88118.0,0.226968]
[1741026594445,0.05497121,88110.0,88109.0,0.03114482]
[1741026594645,0.05497121,88093.0,88090.0,0.00239368]
[1741026594854,0.17846085,88153.0,88064.0,0.00017]
[1741026594855,0.05497121,88077.0,88076.0,0.02875114]
[1741026595005,0.05497121,88065.0,88064.0,0.00296159]
[1741026595464,0.05497121,88065.0,88064.0,0.03171273]
[1741026595885,0.05497121,88065.0,88064.0,0.00056791]
[1741026596495,0.59661606,88065.0,88064.0,0.00056791]
[1741026596696,0.28214021,88040.0,88007.0,0.00239368]
[1741026596906,0.05497121,88005.0,88004.0,0.03114482]
[1741026597106,0.05497121,88009.0,88006.0,0.03114482]
[1741026597339,0.42318698,88030.0,88004.0,0.00239368]
[1741026597340,0.05497121,88005.0,88004.0,0.00239368]
[1741026597546,0.05497121,88005.0,88001.0,0.0001707]
[1741026597703,0.05497121,87992.0,87990.0,0.22586238]
[1741026597899,0.05497121,87992.0,87990.0,0.04531724]
[1741026598102,0.05497121,87984.0,87937.0,0.454871]
[1741026598328,0.05497121,87982.0,87979.0,0.02875114]
[1741026598532,0.05497121,87974.0,87940.0,0.00039847]
[1741026598731,0.42318698,88020.0,87981.0,0.02875114]
[1741026598930,0.42318698,88020.0,87941.0,0.00159149]
[1741026598931,0.227206,88026.0,87993.0,0.02875114]
[1741026599131,0.227206,88026.0,87941.0,0.00159149]
[1741026599132,0.227204,88027.0,88001.0,0.02875114]
[1741026599346,0.541488,88030.0,88002.0,0.02875114]
[1741026599671,0.541488,88030.0,88009.0,0.02875114]
[1741026599863,0.541488,88030.0,88016.0,0.02875114]
[1741026600299,0.01780766,88025.0,88024.0,0.02875114]
[1741026600491,0.01780766,88025.0,87994.0,0.02875114]
[1741026600680,0.42318698,88010.0,87993.0,0.02875114]
[1741026600879,0.42318698,88010.0,87975.0,0.02875114]
[1741026601114,0.42318698,87990.0,87950.0,0.00159155]
[1741026601316,0.42318698,87990.0,87938.0,0.0111]
[1741026601317,0.42318698,87990.0,87970.0,0.02875114]
[1741026601522,0.42318698,87990.0,87971.0,0.02875114]
[1741026601695,0.42318698,87990.0,87979.0,0.02875114]
[1741026601947,0.42318698,87990.0,87973.0,0.02875114]
[1741026602151,0.227301,87989.0,87955.0,0.02875114]
[1741026602354,0.227301,87989.0,87912.0,0.0001703]
[1741026602355,0.3,87964.0,87912.0,0.0001703]
[1741026602482,0.42318698,87941.0,87912.0,0.0001703]
[1741026602690,0.42318698,87941.0,87931.0,0.10039847]
[1741026602896,0.42318698,87960.0,87931.0,0.10039847]
[1741026603116,0.42318698,87960.0,87944.0,0.02875114]
[1741026603331,0.42318698,87960.0,87933.0,0.02875114]
[1741026603535,0.1,87920.0,87860.0,0.25170902]
[1741026603740,0.42318698,87960.0,87786.0,0.51334473]
[1741026603741,0.2,87928.0,87870.0,0.42318698]
[1741026603941,0.2,87928.0,87861.0,0.0251709]
[1741026603942,0.1,87928.0,87871.0,0.30159246]
[1741026604218,0.1,87941.0,87881.0,0.3]
[1741026604427,0.1,87946.0,87881.0,0.3]
[1741026604428,0.1,87946.0,87882.0,0.01613302]
[1741026604634,0.1,87956.0,87882.0,0.01613302]
[1741026604845,0.1,87963.0,87901.0,0.3]
[1741026605055,0.007,87941.0,87902.0,0.08845132]
[1741026605261,0.1,87973.0,87902.0,0.08845132]
[1741026605437,0.1,87975.0,87902.0,0.08845132]
[1741026605688,0.2,87993.0,87941.0,0.3]
[1741026605891,0.004,87956.0,87942.0,0.00159131]
[1741026606093,0.00039619,87993.0,87942.0,0.00159131]
[1741026606299,0.1,88021.0,87961.0,0.3]
[1741026606505,0.2,88021.0,87962.0,0.01613149]
[1741026606709,0.2,88021.0,87963.0,0.06363145]
[1741026606710,0.001,87975.0,87963.0,0.06363145]
[1741026606926,0.1,87965.0,87941.0,0.00159112]
[1741026607134,0.001,87975.0,87921.0,0.00159145]
[1741026607135,0.1,87956.0,87921.0,0.00159145]
[1741026607344,0.0015923,87955.0,87911.0,0.00159183]
[1741026607526,0.0015923,87955.0,87912.0,0.04247788]
[1741026607527,0.1,87942.0,87912.0,0.04247788]
[1741026607756,0.1,87923.0,87904.0,0.00147964]
[1741026607949,0.1,87923.0,87885.0,0.16412]
[1741026607950,0.1,87933.0,87890.0,0.42318698]
[1741026608171,0.1,87952.0,87891.0,0.00159228]
[1741026608372,0.1,87972.0,87910.0,0.42318698]
[1741026608598,0.00039595,87955.0,87923.0,0.3]
[1741026608799,0.00039595,87955.0,87954.0,0.227391]
[1741026608946,9.5e-07,87955.0,87954.0,0.227391]
[1741026609156,0.1,87974.0,87954.0,0.2956096]
[1741026609356,0.09950095,87958.0,87954.0,0.00011945]
[1741026609745,0.3,88004.0,87954.0,0.00011945]
[1741026609746,0.1,87987.0,87954.0,0.00011945]
[1741026609944,0.1,87989.0,87954.0,0.00011945]
[1741026610178,0.1,88000.0,87962.0,0.01454085]
[1741026610468,0.1,88019.0,87964.0,0.01454085]
[1741026610690,0.1,88019.0,87981.0,0.3]
[1741026610897,0.00170497,88047.0,88021.0,0.3]
[1741026611039,0.09984175,88063.0,88047.0,0.227151]
[1741026611244,0.0003408,88063.0,88047.0,0.226151]
[1741026611440,0.0003408,88063.0,88062.0,0.227112]
[1741026611882,8e-07,88063.0,88062.0,0.227112]
[1741026612097,2.3e-07,88063.0,88062.0,0.58100193]
[1741026612529,0.04075355,88088.0,88062.0,0.07343078]
[1741026612710,0.09950095,88084.0,88063.0,0.00158924]
[1741026612940,0.001,88063.0,88051.0,0.00158928]
[1741026613142,0.001,88063.0,88040.0,0.42318698]
[1741026613358,0.001,88063.0,88041.0,0.00158972]
[1741026613484,0.001,88063.0,88042.0,0.04247767]
[1741026613690,0.09950095,88060.0,88043.0,0.00158962]
[1741026613909,0.001,88063.0,88031.0,0.3015897]
[1741026614110,0.001,88063.0,88052.0,0.01454085]
[1741026614350,0.0003408,88108.0,88054.0,0.01454085]
[1741026614562,0.0003408,88108.0,88098.0,0.42318698]
[1741026614764,0.0003408,88108.0,88099.0,0.30158912]
[1741026615063,0.00045976,88108.0,88100.0,0.07631442]
[1741026615264,7e-05,88117.0,88100.0,0.06018504]
[1741026615473,7e-05,88117.0,88100.0,0.06177387]
[1741026615681,0.00034,88139.0,88138.0,0.24145685]
[1741026615876,0.00034,88139.0,88138.0,0.226916]
[1741026616075,0.00045913,88139.0,88138.0,0.226916]
[1741026617036,0.00045913,88139.0,88138.0,0.225916]
[1741026617202,1.3e-07,88139.0,88138.0,0.525916]
[1741026617405,5.3e-07,88154.0,88153.0,0.226878]
[1741026617751,0.00039755,88154.0,88153.0,0.24141885]
[1741026617949,0.09950095,88204.0,88164.0,0.3]
[1741026618187,0.00204557,88219.0,88154.0,0.01454085]
[1741026618188,0.0003406,88219.0,88190.0,0.42318698]
[1741026618396,0.0003406,88219.0,88218.0,0.226711]
[1741026618543,0.00045975,88219.0,88218.0,0.226711]
[1741026618748,0.00906385,88230.0,88229.0,0.226682]
[1741026618912,0.00906385,88230.0,88229.0,0.22680115]
[1741026619111,8.5e-07,88230.0,88229.0,0.28130181]
[1741026619373,8.5e-07,88230.0,88229.0,0.24466749]
[1741026619597,0.09940512,88239.0,88229.0,0.00011915]
[1741026619731,0.0003406,88243.0,88229.0,0.00011915]
[1741026619932,0.09940512,88230.0,88229.0,0.00011915]
[1741026620156,0.09940512,88240.0,88229.0,0.00011915]
[1741026620409,0.09940512,88242.0,88235.0,0.226667]
[1741026620582,0.09940512,88230.0,88229.0,0.00711915]
[1741026620988,0.0003406,88243.0,88229.0,0.00711915]
[1741026620989,0.09940512,88233.0,88229.0,0.00711915]
[1741026621196,0.0003406,88243.0,88229.0,0.00711915]
[1741026621397,0.09940512,88241.0,88235.0,0.226667]
[1741026621594,0.09940512,88241.0,88235.0,0.27271312]
[1741026621812,0.0003406,88243.0,88235.0,0.27271312]
[1741026622057,0.0003406,88243.0,88235.0,0.57271312]
[1741026623091,0.0003406,88243.0,88235.0,0.27271312]
[1741026623905,0.09940512,88264.0,88235.0,0.04604612]
[1741026624264,0.09940512,88263.0,88236.0,0.00158604]
[1741026624465,0.09940512,88264.0,88237.0,0.03546322]
[1741026624674,0.09940512,88273.0,88237.0,0.03704944]
[1741026624877,0.09940512,88270.0,88237.0,0.00158622]
[1741026625080,0.09940512,88269.0,88237.0,0.00158622]
[1741026625351,0.09940512,88261.0,88237.0,0.00158622]
[1741026625485,0.09940512,88251.0,88238.0,0.00158619]
[1741026625688,0.09940512,88250.0,88239.0,0.02352482]
[1741026625892,0.09940512,88236.0,88235.0,0.007]
[1741026626091,0.09940512,88252.0,88251.0,0.226626]
[1741026626273,0.09940512,88247.0,88243.0,0.226644]
[1741026626473,0.09940512,88239.0,88234.0,0.226669]
[1741026626765,0.09940512,88239.0,88229.0,0.00011915]
[1741026626766,0.09940512,88230.0,88229.0,0.00011915]
[1741026627201,0.62608512,88230.0,88229.0,0.00011915]
[1741026627405,0.09940512,88169.0,88159.0,0.226862]
[1741026627617,0.3,88209.0,88164.0,0.226847]
[1741026627618,0.09549721,88166.0,88164.0,0.226847]
[1741026627813,0.08526235,88166.0,88121.0,0.45392]
[1741026627928,0.08526235,88166.0,88080.0,0.42318698]
[1741026628128,0.08526235,88166.0,88081.0,0.00158841]
[1741026628359,0.31210635,88166.0,88113.0,0.226979]
[1741026628716,0.1,88201.0,88114.0,0.0015887]
[1741026628917,0.3,88159.0,88114.0,0.00039702]
[1741026629073,0.42318698,88140.0,88114.0,0.00039702]
[1741026629234,0.51982285,88158.0,88114.0,0.00039702]
[1741026629235,0.42318698,88124.0,88114.0,0.00039702]
[1741026629650,0.42318698,88140.0,88114.0,0.00039702]
[1741026629851,1.12501353,88192.0,88114.0,0.00039702]
[1741026629852,0.42318698,88160.0,88114.0,0.00039702]
[1741026630057,0.42318698,88160.0,88115.0,0.0227377]
[1741026630257,0.1,88229.0,88116.0,0.00158888]
[1741026630480,0.01778273,88180.0,88120.0,0.42318698]
[1741026630726,0.226773,88194.0,88121.0,0.45550896]
[1741026630941,0.42318698,88180.0,88127.0,0.226943]
[1741026631175,1.10863353,88233.0,88128.0,0.0015885]
[1741026631394,0.42318698,88180.0,88115.0,0.00158805]
[1741026631596,0.01454085,88178.0,88114.0,0.00139702]
[1741026631799,0.3,88179.0,88114.0,0.00139702]
[1741026631999,0.42318698,88180.0,88142.0,0.226905]
[1741026632200,0.42318698,88180.0,88143.0,0.0226905]
[1741026632410,0.42318698,88210.0,88144.0,0.00158827]
[1741026632617,0.42318698,88210.0,88131.0,0.3]
[1741026632618,0.005,88180.0,88179.0,0.226811]
[1741026633097,0.226653,88241.0,88166.0,0.3]
[1741026633296,0.002,88180.0,88167.0,0.00158732]
[1741026633672,0.42318698,88250.0,88171.0,0.3]
[1741026633813,0.226657,88239.0,88205.0,0.226742]
[1741026634177,0.226657,88239.0,88171.0,0.3]
[1741026634178,0.42318698,88230.0,88171.0,0.226829]
[1741026634360,0.17084,88232.0,88172.0,0.02728622]
[1741026634674,0.17084,88232.0,88172.0,0.00158745]
[1741026634956,0.42318698,88220.0,88166.0,0.00258725]
[1741026635158,0.42318698,88220.0,88166.0,0.001]
[1741026635313,0.3,88231.0,88201.0,0.226753]
[1741026635493,0.226561,88199.0,88167.0,0.226841]
[1741026635698,0.3,88219.0,88120.0,0.42318698]
[1741026635958,0.226753,88202.0,88155.0,0.226873]
[1741026636180,0.31454085,88214.0,88126.0,1.134733]
[1741026636338,0.226772,88195.0,88162.0,0.226852]
[1741026636504,0.3,88199.0,88127.0,0.10891644]
[1741026636699,0.226811,88179.0,88100.0,0.42318698]
[1741026636934,0.226826,88173.0,88139.0,0.226912]
[1741026637149,0.42318698,88180.0,88100.0,0.42318698]
[1741026637360,0.42318698,88180.0,88147.0,0.226891]
[1741026637557,0.3,88179.0,88100.0,0.42318698]
[1741026637760,0.00158846,88178.0,88100.0,0.39711524]
[1741026637987,0.00158846,88199.0,88155.0,0.226871]
[1741026638185,0.42318698,88200.0,88157.0,0.1]
[1741026638387,0.42330599,88200.0,88166.0,0.1]
[1741026638587,0.42330599,88200.0,88141.0,0.1]
[1741026638792,0.3,88198.0,88146.0,0.1]
[1741026639038,0.004,88173.0,88172.0,0.326829]
[1741026639409,0.16384,88216.0,88174.0,0.1]
[1741026639625,0.16384,88216.0,88148.0,0.753779]
[1741026639626,0.16384,88216.0,88181.0,0.1]
[1741026639791,0.01184548,88256.0,88175.0,0.01]
[1741026639792,0.006,88200.0,88192.0,0.226777]
[1741026639991,0.006,88200.0,88175.0,0.01]
[1741026639992,0.42318698,88260.0,88239.0,0.226656]
[1741026640193,0.0001699,88269.0,88240.0,0.01371939]
[1741026640416,0.0001699,88269.0,88236.0,0.1]
[1741026640683,0.00039719,88264.0,88239.0,0.094]
[1741026641000,0.00039719,88264.0,88240.0,0.0094]
[1741026641126,0.00039719,88264.0,88242.0,0.094]
[1741026641327,0.00039719,88264.0,88225.0,0.094]
[1741026641528,0.00039719,88264.0,88241.0,0.094]
[1741026641801,0.00039719,88264.0,88191.0,0.00158673]
[1741026641802,0.00039719,88264.0,88244.0,0.226642]
[1741026641968,0.00039719,88264.0,88252.0,0.226621]
[1741026642187,0.00039719,88264.0,88241.0,0.094]
[1741026642389,0.00039719,88264.0,88240.0,0.001]
[1741026642594,0.00039719,88264.0,88246.0,0.094]
[1741026642753,0.00039719,88264.0,88248.0,0.226634]
[1741026642953,0.00039719,88264.0,88249.0,0.0312634]
[1741026643161,0.00039719,88264.0,88260.0,0.2266]
[1741026643380,0.00039719,88264.0,88243.0,0.086]
[1741026643585,0.00039719,88264.0,88248.0,0.086]
[1741026643821,0.00039719,88264.0,88223.0,0.226697]
[1741026644024,0.00039719,88264.0,88220.0,0.086]
[1741026644165,0.00039719,88264.0,88190.0,0.42318698]
[1741026644166,0.00039719,88264.0,88232.0,0.086]
[1741026644367,0.00039719,88264.0,88221.0,0.0946]
[1741026644580,0.42318698,88260.0,88221.0,0.0086]
[1741026644783,0.226679,88231.0,88190.0,0.086]
[1741026644985,0.42318698,88240.0,88185.0,0.086]
[1741026645196,0.3,88239.0,88192.0,0.226777]
[1741026645401,0.42318698,88260.0,88207.0,0.084]
[1741026645606,0.42318698,88260.0,88219.0,0.084]
[1741026645815,0.42318698,88280.0,88243.0,0.003]
[1741026646024,0.42330605,88280.0,88243.0,0.003]
[1741026646451,0.42318698,88260.0,88220.0,0.0084]
[1741026646653,0.42318698,88260.0,88211.0,0.226727]
[1741026646654,0.3,88259.0,88228.0,0.226684]
[1741026646854,0.42330605,88280.0,88218.0,0.084]
[1741026647123,0.42330605,88280.0,88239.0,0.084]
[1741026647327,0.42330605,88280.0,88218.0,0.084]
[1741026647542,0.42318698,88260.0,88217.0,0.084]
[1741026647745,0.01454085,88256.0,88194.0,0.075]
[1741026647946,0.01454085,88256.0,88195.0,0.075]
[1741026648208,0.42318698,88260.0,88209.0,0.075]
[1741026648421,0.42318698,88260.0,88196.0,0.0075]
[1741026648422,0.42318698,88240.0,88220.0,0.001]
[1741026648627,0.3,88253.0,88220.0,0.001]
[1741026648832,0.42318698,88260.0,88214.0,0.075]
[1741026649037,0.3,88258.0,88210.0,0.075]
[1741026649243,0.226621,88253.0,88211.0,0.0075]
[1741026649453,0.004,88256.0,88182.0,0.00158703]
[1741026649454,0.004,88256.0,88218.0,0.075]
[1741026649655,0.004,88256.0,88232.0,0.075]
[1741026649857,0.004,88256.0,88219.0,0.00158695]
[1741026649858,0.00011907,88256.0,88255.0,0.301616]
[1741026650061,0.00011907,88256.0,88221.0,0.3]
[1741026650062,0.00011907,88256.0,88221.0,0.075]
[1741026650266,0.00011907,88256.0,88200.0,0.42318698]
[1741026650267,0.00011907,88256.0,88234.0,0.075]
[1741026650598,0.00011907,88256.0,88223.0,0.075]
[1741026650811,0.00011907,88256.0,88255.0,0.075]
[1741026651013,0.00011907,88256.0,88243.0,0.075]
[1741026651331,0.00011907,88256.0,88233.0,0.075]
[1741026651536,0.00011907,88256.0,88232.0,0.075]
[1741026651738,0.00011907,88256.0,88233.0,0.0015866]
[1741026651897,0.00011907,88256.0,88232.0,0.0825]
[1741026652108,0.00011907,88256.0,88255.0,0.301616]
[1741026652323,0.00011907,88256.0,88255.0,0.226616]
[1741026652836,0.42318698,88300.0,88243.0,0.004]
[1741026653042,0.3,88299.0,88260.0,0.226602]
[1741026653246,0.42330592,88300.0,88250.0,0.075]
[1741026653247,0.22652,88293.0,88257.0,0.2212682]
[1741026653470,0.3,88299.0,88257.0,0.075]
[1741026653865,0.00011894,88300.0,88268.0,0.075]
[1741026654068,0.226528,88289.0,88243.0,0.075]
[1741026654268,0.42318698,88290.0,88255.0,0.007]
[1741026656295,0.226631,88249.0,88214.0,0.226719]
[1741026656519,0.3,88247.0,88189.0,0.093016]
[1741026656719,0.3,88247.0,88214.0,0.00039719]
[1741026656918,0.3,88249.0,88214.0,0.00039719]
[1741026657122,0.3,88243.0,88214.0,0.00039719]
[1741026657367,0.3,88240.0,88214.0,0.00039719]
[1741026657694,0.3,88240.0,88189.0,0.07339719]
[1741026657890,0.3,88240.0,88198.0,0.07339719]
[1741026658133,0.42318698,88230.0,88190.0,0.00733972]
[1741026658352,0.226685,88228.0,88214.0,0.001]
[1741026658527,0.42318698,88230.0,88214.0,0.001]
[1741026658727,0.003,88243.0,88214.0,0.001]
[1741026658992,0.42318698,88250.0,88215.0,0.07339719]
[1741026659123,0.42318698,88250.0,88216.0,0.00733972]
[1741026659555,0.226654,88241.0,88216.0,0.00733972]
[1741026659709,0.3,88249.0,88202.0,0.226751]
[1741026659925,0.226658,88239.0,88206.0,0.22674]
[1741026660128,0.31454085,88229.0,88195.0,0.0003396]
[1741026660347,0.42318698,88250.0,88196.0,0.07339719]
[1741026660524,0.00039638,88249.0,88197.0,0.00896076]
[1741026660724,0.00039638,88249.0,88195.0,0.0003396]
[1741026660725,0.3,88229.0,88195.0,0.0003396]
[1741026660934,0.3,88221.0,88195.0,0.0003396]
[1741026661139,0.340049,88223.0,88195.0,0.0003396]
[1741026661346,0.526767,88196.0,88195.0,0.0003396]
[1741026661555,0.226829,88172.0,88153.0,0.02192778]
[1741026661757,0.526875,88154.0,88153.0,0.02192778]
[1741026661965,0.211575,88154.0,88114.0,0.0003398]
[1741026662165,1.10863353,88182.0,88114.0,0.0003398]
[1741026662166,0.17091227,88140.0,88114.0,0.0003398]
[1741026662424,0.226923,88136.0,88114.0,0.0003398]
[1741026662590,0.226818,88177.0,88114.0,0.00073682]
[1741026662812,0.001,88154.0,88153.0,0.007]
[1741026663018,0.001,88154.0,88153.0,0.233878]
[1741026663262,0.001,88154.0,88153.0,0.38338021]
[1741026663655,0.42318698,88230.0,88172.0,0.07339719]
[1741026663803,0.42318698,88230.0,88188.0,0.07339719]
[1741026664004,0.42318698,88210.0,88174.0,0.07339719]
[1741026664215,0.42318698,88210.0,88163.0,0.07339719]
[1741026664450,0.42318698,88210.0,88177.0,0.07339719]
[1741026664664,0.1,88266.0,88141.0,0.3]
[1741026664665,0.46908919,88250.0,88222.0,0.2267]
[1741026664841,0.46908919,88250.0,88210.0,0.06739719]
[1741026665040,0.46908919,88250.0,88222.0,0.2267]
[1741026665261,0.21592,88264.0,88222.0,0.29409719]
[1741026665531,0.46908919,88232.0,88187.0,0.226788]
[1741026665896,0.226683,88229.0,88190.0,0.06739719]
[1741026666098,0.3,88231.0,88188.0,0.06739719]
[1741026666230,0.46908919,88250.0,88204.0,0.06739719]
[1741026666429,0.21516,88266.0,88222.0,0.29409719]
[1741026666671,0.09292938,88224.0,88222.0,0.29409719]
[1741026667256,3.8e-07,88224.0,88223.0,0.29409519]
[1741026667460,0.46908919,88290.0,88264.0,0.226592]
[1741026667662,0.46908919,88290.0,88264.0,0.198592]
[1741026667961,0.21436,88302.0,88264.0,0.26757525]
[1741026668185,0.46908919,88274.0,88229.0,0.06739719]
[1741026668406,0.46908919,88290.0,88264.0,0.226592]
[1741026668573,0.21436,88302.0,88264.0,0.226592]
[1741026668574,0.440855,88302.0,88264.0,0.226592]
[1741026668779,0.21436,88302.0,88264.0,0.233592]
[1741026668976,0.226498,88301.0,88264.0,0.007]
[1741026669178,0.21436,88302.0,88264.0,0.30098919]
[1741026669408,0.21436,88302.0,88264.0,0.29398919]
[1741026669635,0.00056643,88265.0,88264.0,0.007]
[1741026669837,0.00056643,88265.0,88264.0,0.30098919]
[1741026670159,4.3e-07,88265.0,88264.0,0.30098919]
[1741026670978,4.3e-07,88265.0,88264.0,0.29398919]
[1741026671188,0.46908919,88350.0,88307.0,0.06739719]
[1741026671393,0.46908919,88350.0,88264.0,0.37471922]
[1741026671394,0.00028893,88340.0,88303.0,0.06739719]
[1741026671597,0.0001699,88339.0,88307.0,0.06739719]
[1741026671801,0.0001699,88339.0,88311.0,0.06739719]
[1741026672005,0.0001699,88339.0,88338.0,0.22367664]
[1741026672285,0.0001699,88339.0,88338.0,0.29107383]
[1741026672698,0.0003396,88360.0,88344.0,0.06739719]
[1741026672847,0.0003396,88360.0,88351.0,0.06739719]
[1741026673048,0.0003398,88426.0,88359.0,0.06739719]
[1741026673249,0.226523,88424.0,88381.0,0.06739719]
[1741026673427,0.46908919,88410.0,88361.0,0.06739719]
[1741026673613,0.00034,88424.0,88351.0,0.00689814]
[1741026673614,0.46908919,88390.0,88351.0,0.00689814]
[1741026673814,0.3,88389.0,88313.0,0.00158454]
[1741026674101,0.46908919,88410.0,88356.0,0.06739719]
[1741026674214,0.00039656,88390.0,88331.0,0.3]
[1741026674414,0.00039656,88390.0,88364.0,0.06739719]
[1741026674665,0.00039656,88390.0,88346.0,0.06739719]
[1741026674862,0.46908919,88380.0,88335.0,0.06739719]
[1741026675074,0.46908919,88380.0,88319.0,0.06739719]
[1741026675249,0.46908919,88380.0,88338.0,0.06739719]
[1741026675456,0.00039656,88390.0,88357.0,0.06739719]
[1741026675649,0.00039656,88390.0,88365.0,0.06739719]
[1741026675883,0.00039656,88390.0,88367.0,0.06739719]
[1741026676272,0.0003,88390.0,88353.0,0.06739719]
[1741026676500,0.0003,88390.0,88364.0,0.06739719]
[1741026676703,0.0003,88390.0,88372.0,0.06739719]
[1741026677139,0.0003,88390.0,88374.0,0.06739719]
[1741026677350,0.0003,88390.0,88389.0,0.226272]
[1741026677580,0.0003,88390.0,88389.0,0.29366919]
[1741026678446,0.0003422,88454.0,88405.0,0.29362819]
[1741026678701,0.0102744,88406.0,88405.0,0.29362819]
[1741026679122,4e-07,88406.0,88405.0,0.29362819]
[1741026679348,4e-07,88406.0,88405.0,0.226231]
[1741026679547,4e-07,88406.0,88405.0,0.29362819]
[1741026679985,4e-07,88406.0,88376.0,0.3]
[1741026679986,0.226129,88445.0,88401.0,0.06739719]
[1741026680189,0.46908919,88440.0,88400.0,0.06739719]
[1741026680391,0.00011882,88445.0,88425.0,0.06739719]
[1741026680595,0.00011882,88445.0,88426.0,0.00673972]
[1741026680802,0.00011882,88445.0,88422.0,0.06739719]
[1741026681215,0.00011882,88445.0,88425.0,0.06739719]
[1741026681353,0.00011882,88445.0,88416.0,0.06739719]
[1741026681553,0.00011882,88445.0,88425.0,0.06739719]
[1741026681776,0.00011882,88445.0,88426.0,0.00673972]
[1741026682394,0.00011882,88445.0,88400.0,0.3414462]
[1741026682603,0.00011882,88445.0,88419.0,0.06739719]
[1741026682802,0.00011882,88445.0,88420.0,0.06739719]
[1741026683003,0.00011882,88445.0,88413.0,0.06739719]
[1741026683202,0.00011882,88445.0,88421.0,0.06739719]
[1741026683409,0.00011882,88445.0,88422.0,0.00673972]
[1741026683607,0.00011882,88445.0,88400.0,0.0005]
[1741026683608,0.00011882,88445.0,88409.0,0.06739719]
[1741026684012,0.00011882,88445.0,88400.0,0.0005]
[1741026684337,0.46908919,88440.0,88400.0,0.0005]
[1741026684553,0.00011882,88445.0,88416.0,0.06739719]
[1741026684715,0.00011882,88445.0,88400.0,0.0005]
[1741026684716,0.46908919,88440.0,88403.0,0.06739719]
[1741026684918,0.46908919,88440.0,88412.0,0.06739719]
[1741026685155,0.00011882,88445.0,88421.0,0.06739719]
[1741026685481,0.00011882,88445.0,88406.0,0.06739719]
[1741026685681,0.46908919,88440.0,88405.0,0.06739719]
[1741026685886,0.00028832,88445.0,88421.0,0.06739719]
[1741026686136,0.00028832,88445.0,88426.0,0.29357419]
[1741026686404,0.00028832,88445.0,88400.0,0.0005]
[1741026686605,0.46908919,88440.0,88409.0,0.06739719]
[1741026686753,0.226152,88436.0,88400.0,0.06789719]
[1741026686940,0.00028832,88445.0,88400.0,0.0005]
[1741026686941,0.01454085,88419.0,88400.0,0.0005]
[1741026687143,0.3,88417.0,88364.0,0.000339]
[1741026687343,0.24087385,88365.0,88364.0,0.000339]
[1741026687779,0.3,88366.0,88342.0,0.226392]
[1741026687978,0.3,88366.0,88308.0,0.00673972]
[1741026687979,0.226403,88338.0,88310.0,0.05973619]
[1741026688202,0.226469,88313.0,88308.0,0.00673972]
[1741026688420,0.226469,88313.0,88270.0,0.00158516]
[1741026688421,0.226454,88318.0,88270.0,0.05973619]
[1741026688677,0.46908919,88320.0,88291.0,0.226523]
[1741026688880,0.226477,88309.0,88308.0,0.00039656]
[1741026689016,0.54101785,88309.0,88308.0,0.00039656]
[1741026689213,0.54101785,88309.0,88275.0,0.0003388]
[1741026689214,0.226562,88276.0,88275.0,0.0003388]
[1741026689416,0.226554,88280.0,88275.0,0.0003388]
[1741026689707,0.46908919,88310.0,88275.0,0.0601939]
[1741026689915,0.46908919,88340.0,88295.0,0.05973619]
[1741026690139,0.20504,88362.0,88320.0,0.05973619]
[1741026690342,0.46908919,88370.0,88332.0,0.05973619]
[1741026690343,0.69541119,88370.0,88332.0,0.05973619]
[1741026690540,0.46908919,88390.0,88334.0,0.05973619]
[1741026690773,0.09397605,88430.0,88334.0,0.05973619]
[1741026690774,0.46908919,88410.0,88369.0,0.05973619]
[1741026690969,0.09397605,88430.0,88413.0,0.226208]
[1741026691174,0.00012477,88422.0,88404.0,0.226231]
[1741026691345,0.00012477,88422.0,88411.0,0.05973619]
[1741026691547,0.00012477,88422.0,88361.0,0.3]
[1741026691548,0.00012477,88422.0,88401.0,0.05973619]
[1741026691803,0.00012477,88422.0,88400.0,0.05973619]
[1741026692033,0.00012477,88422.0,88384.0,0.05973619]
[1741026692184,0.00012477,88422.0,88389.0,0.05973619]
[1741026692349,0.00012477,88422.0,88405.0,0.05973619]
[1741026692548,0.00012477,88422.0,88406.0,0.00597362]
[1741026692751,0.00012477,88422.0,88362.0,0.00158362]
[1741026692752,0.00012477,88422.0,88400.0,0.05273619]
[1741026693153,0.00012477,88422.0,88390.0,0.05273619]
[1741026693154,0.226193,88420.0,88390.0,0.05273619]
[1741026693383,0.00012477,88422.0,88390.0,0.05273619]
[1741026693655,0.00012477,88422.0,88394.0,0.05273619]
[1741026693903,0.00012477,88422.0,88400.0,0.05273619]
[1741026694112,0.00012477,88422.0,88412.0,0.05273619]
[1741026694350,0.00012477,88422.0,88406.0,0.05273619]
[1741026694587,0.00012477,88422.0,88384.0,0.05273619]
[1741026694828,0.00012477,88422.0,88378.0,0.05273619]
[1741026695065,0.00012477,88422.0,88386.0,0.05273619]
[1741026695066,0.3,88419.0,88386.0,0.05273619]
[1741026695282,0.226226,88408.0,88375.0,0.05273619]
[1741026695495,0.01454085,88401.0,88367.0,0.05273619]
[1741026695780,0.01454085,88404.0,88355.0,0.05273619]
[1741026695919,0.112711,88403.0,88370.0,0.05273619]
[1741026696136,0.46908919,88400.0,88355.0,0.05273619]
[1741026696357,0.20384,88420.0,88375.0,0.05273619]
[1741026696358,0.46908919,88410.0,88375.0,0.05273619]
[1741026696556,0.24076285,88409.0,88375.0,0.05273619]
[1741026696757,0.20384,88420.0,88375.0,0.05273619]
[1741026696758,0.00039624,88420.0,88389.0,0.05273619]
[1741026697268,0.00039624,88420.0,88376.0,0.05273619]
[1741026697486,0.00039624,88420.0,88374.0,0.22631]
[1741026697487,0.226215,88412.0,88367.0,0.05273619]